fUSD/lending_fUSD_20250427
["ID","MTS","AMOUNT","RATE_DAILY","PERIOD"]
[359166430,1745761832307,-3994.0,0.00019939,2]
[359166432,1745761832317,-2284.943,0.00019939,2]
[359166434,1745761832326,-877.0,0.00019939,2]
[359166436,1745761832336,-150.647,0.00019939,2]
[359166438,1745761832345,-146832.91567528,0.00019971,2]
[359166440,1745761832357,-1479.54560526,0.00019971,2]
[359166481,1745761839967,-268.72574048,0.00019971,2]
[359166482,1745761839979,-4401.8439554,0.00019971,2]
[359166483,1745761839991,-978.67396974,0.00019971,2]
[359166484,1745761840002,-2352.7027816,0.00019971,2]
[359166485,1745761840024,-2484.73945502,0.00019971,2]
[359166491,1745761844644,-937.15295229,0.00019971,2]
[359166492,1745761844867,-37781.70515448,0.00019971,2]
[359166493,1745761844924,-379.3070651,0.00019971,2]
[359166571,1745761845652,-11968.96900003,0.00019971,2]
[359166572,1745761845663,-2300.6003328,0.00019971,2]
[359166574,1745761845674,-1302.00332899,0.00019971,2]
[359166579,1745761845716,-5019.53815181,0.00019971,2]
[359166616,1745761846166,-39330.6422277,0.00019971,2]
[359166619,1745761846188,-1587.03359657,0.00019971,2]
[359166621,1745761846199,-678.46196361,0.00019971,2]
[359166650,1745761946983,247.63,0.00041096,30]
[359166651,1745761968849,350.427,0.00041055,30]
[359166652,1745762171784,269.84,0.00041095,120]
[359166654,1745762264956,158.0,0.000342,120]
[359166655,1745762282071,350.427,0.00041055,30]
[359166656,1745762309983,968.404,0.00037811,49]
[359166657,1745762310140,163.079,0.00037811,49]
[359166659,1745762382294,162.69,0.00018946,2]
[359166660,1745762501461,1331.43423158,0.00041096,30]
[359166669,1745762603001,350.427,0.00041055,30]
[359166670,1745762607502,250.0,0.00017,2]
[359166671,1745762608584,300.0,0.00019,2]
[359166672,1745762749409,150.0,0.00041,30]
[359166673,1745762779733,3018.01095925,0.00041,30]
[359166674,1745762816528,1053.0,0.00041096,30]
[359166675,1745762862408,35000.0,0.00041096,31]
[359166677,1745762889793,346.61,0.00017015,2]
[359166678,1745762890019,346.61,0.00019279,2]
[359166679,1745762916498,350.427,0.00041055,30]
[359166680,1745762950131,158938.5372764,0.00041095,30]
[359166685,1745763010615,256.58780213,0.00041,30]
[359166686,1745763032043,-217.6100759,0.00019769,2]
[359166687,1745763032053,-200.0,0.00019784,2]
[359166688,1745763032062,-288.4917917,0.00019798,2]
[359166689,1745763032071,-200.0,0.00019823,2]
[359166690,1745763032080,-1236.354,0.00019868,2]
[359166691,1745763032089,-287.381882,0.00019869,2]
[359166692,1745763032098,-269.8531,0.00019869,2]
[359166693,1745763032107,-1115.0421,0.00019869,2]
[359166694,1745763032116,-300.0,0.0001987,2]
[359166695,1745763032125,-1200.0,0.0001987,2]
[359166696,1745763032134,-6565.6587338,0.00019871,2]
[359166697,1745763032149,-571.52007864,0.00019871,2]
[359166738,1745763037945,-762.82118756,0.00019871,2]
[359166739,1745763037956,-1000.0,0.00019873,2]
[359166740,1745763037966,-7062.84402231,0.00019873,2]
[359166741,1745763037979,-1967.41000002,0.00019873,2]
[359166742,1745763037990,-1620.877762,0.00019873,2]
[359166743,1745763038002,-653.94621567,0.00019873,2]
[359166744,1745763038012,-287.381882,0.00019874,2]
[359166745,1745763038022,-152.4935803,0.00019878,2]
[359166746,1745763038031,-287.381882,0.00019878,2]
[359166747,1745763038041,-326.3645,0.0001988,2]
[359166748,1745763038051,-152.4935803,0.00019885,2]
[359166749,1745763038061,-172.65773644,0.00019886,2]
[359166750,1745763038070,-167.15985191,0.0001989,2]
[359166751,1745763038080,-90.28077138,0.00019893,2]
[359166752,1745763038092,-62.21280892,0.00019893,2]
[359166753,1745763038102,-167.15985189,0.00019893,2]
[359166754,1745763038112,-167.15985189,0.00019897,2]
[359166755,1745763038121,-79.4974873,0.000199,2]
[359166756,1745763038133,-87.66236459,0.000199,2]
[359166757,1745763038142,-172.65773643,0.000199,2]
[359166758,1745763038152,-152.4935803,0.000199,2]
[359166759,1745763038161,-31.18631868,0.00019939,2]
[359166760,1745763038173,-414.81568132,0.00019939,2]
[359166761,1745763038182,-796.0,0.00019939,2]
[359166762,1745763038191,-353.214,0.00019939,2]
[359166763,1745763038200,-98.37031868,0.00019939,2]
[359166764,1745763038237,-63.05268132,0.00019939,2]
[359166765,1745763038247,-574.65456725,0.00019939,2]
[359166781,1745763040060,-4.34543275,0.00019939,2]
[359166782,1745763040070,-400.0,0.00019968,2]
[359166783,1745763040080,-125.88323525,0.00019968,2]
[359166784,1745763040090,-399.70676475,0.00019968,2]
[359166785,1745763040100,-32.56162551,0.00019968,2]
[359166786,1745763040111,-367.43837449,0.00019968,2]
[359166787,1745763040120,-354.07285935,0.00019968,2]
[359166788,1745763040132,-45.92714065,0.00019968,2]
[359166789,1745763040141,-400.0,0.00019968,2]
[359166790,1745763040151,-400.0,0.00019968,2]
[359166791,1745763040160,-62.12285943,0.00019968,2]
[359166792,1745763040171,-337.87714057,0.00019968,2]
[359166793,1745763040180,-239.11285943,0.00019968,2]
[359166794,1745763040206,-160.88714057,0.00019968,2]
[359166795,1745763040215,-400.0,0.00019968,2]
[359166796,1745763040224,-400.0,0.00019968,2]
[359166797,1745763040234,-400.0,0.00019968,2]
[359166798,1745763040244,-400.0,0.00019968,2]
[359166799,1745763040253,-400.0,0.00019968,2]
[359166800,1745763040262,-400.0,0.00019968,2]
[359166801,1745763040271,-400.0,0.00019968,2]
[359166802,1745763040281,-400.0,0.00019968,2]
[359166803,1745763040290,-400.0,0.00019968,2]
[359166804,1745763040299,-336.91285923,0.00019968,2]
[359166805,1745763040311,-479.95712293,0.00019968,2]
[359166806,1745763040330,-803.358,0.00019968,2]
[359166807,1745763040341,-974.49434683,0.00019968,2]
[359166808,1745763040447,-214.46767101,0.00019968,2]
[359166809,1745763040458,-400.0,0.00019968,2]
[359166810,1745763040468,-400.0,0.00019968,2]
[359166811,1745763040478,-400.0,0.00019968,2]
[359166812,1745763040488,-400.0,0.00019968,2]
[359166813,1745763040498,-400.0,0.00019968,2]
[359166814,1745763040508,-400.0,0.00019968,2]
[359166815,1745763040518,-400.0,0.00019968,2]
[359166816,1745763040529,-400.0,0.00019968,2]
[359166817,1745763040539,-400.0,0.00019968,2]
[359166818,1745763040550,-400.0,0.00019968,2]
[359166819,1745763040560,-177.94257697,0.00019968,2]
[359166820,1745763040570,-626.26,0.00019968,2]
[359166821,1745763040579,-467.24,0.00019968,2]
[359166822,1745763040589,-1548.72,0.00019968,2]
[359166823,1745763040599,-400.0,0.00019968,2]
[359166824,1745763040608,-30.74533991,0.00019968,2]
[359166825,1745763040620,-369.25466009,0.00019968,2]
[359166826,1745763040629,-1046.97,0.00019968,2]
[359166827,1745763040638,-51.78948821,0.00019968,2]
[359166828,1745763040650,-348.21051179,0.00019968,2]
[359166829,1745763040660,-239.97,0.00019968,2]
[359166830,1745763040672,-239.97,0.00019968,2]
[359166831,1745763040682,-151.0,0.00019969,2]
[359166832,1745763040691,-151.0,0.00019969,2]
[359166833,1745763040703,-159.431295,0.00019969,2]
[359166834,1745763040715,-151.0,0.00019969,2]
[359166835,1745763040726,-151.0,0.00019969,2]
[359166837,1745763040736,-151.0,0.00019969,2]
[359166839,1745763040746,-151.0,0.00019969,2]
[359166842,1745763040758,-151.0,0.00019969,2]
[359166843,1745763040768,-151.0,0.00019969,2]
[359166844,1745763040777,-158.89055,0.00019969,2]
[359166845,1745763040786,-12857.14782934,0.00019969,2]
[359166846,1745763040804,-462.1393338,0.00019969,2]
[359166855,1745763042933,-1443.469986,0.00019969,2]
[359166856,1745763042991,-4916.87057172,0.00019969,2]
[359166857,1745763043106,-769.4922,0.00019969,2]
[359166858,1745763043160,-4908.2,0.00019969,2]
[359166859,1745763043172,-347.99916423,0.00019969,2]
[359166860,1745763043274,-567.624,0.00019969,2]
[359166963,1745763045815,-3123.73176182,0.000199,2]
[359166964,1745763045825,-400.0,0.00019968,2]
[359166965,1745763045846,-3526.80876237,0.00019969,2]
[359166966,1745763045860,-4754.02886028,0.00019969,2]
[359166967,1745763045872,-2153.64560495,0.00019969,2]
[359166968,1745763045899,-5170.1689922,0.00019969,2]
[359166969,1745763045911,-714.7902479,0.00019969,2]
[359166970,1745763045943,-21915.67354223,0.00019969,2]
[359166975,1745763052886,258.6,0.00041095,120]
[359166976,1745763061666,1000.0,0.00041096,30]
[359166979,1745763159321,1000.0,0.00018967,2]
[359166980,1745763222943,350.427,0.00041055,30]
[359166989,1745763418320,9000.0,0.00041056,60]
[359166990,1745763465111,1003.2,0.00041056,60]
[359166991,1745763510031,774.723,0.00037808,49]
[359166992,1745763539096,350.427,0.00041055,30]
[359166993,1745763723305,1000.0,0.00040099,30]
[359167018,1745763859124,446.11758604,0.00041055,30]
[359167019,1745763910321,2000.0,0.000154,2]
[359167020,1745763910345,2000.0,0.000154,2]
[359167021,1745763910369,2000.0,0.000154,2]
[359167022,1745763910391,1270.89512985,0.000154,2]
[359167024,1745763969650,247.82,0.00041095,120]
[359167025,1745764033691,677.94027054,0.00041096,120]
[359167026,1745764035835,311.94,0.00017062,2]
[359167027,1745764035894,311.94,0.00019326,2]
[359167028,1745764036530,162.69,0.0001898,2]
[359167029,1745764073154,105.22487015,0.0001,2]
[359167030,1745764073183,306.78,0.0001,2]
[359167031,1745764073206,2000.0,0.0001,2]
[359167032,1745764073229,1587.99512985,0.0001,2]
[359167033,1745764091344,412.00487015,0.0001439,2]
[359167034,1745764091366,2000.0,0.0001439,2]
[359167035,1745764091388,1587.99512985,0.0001439,2]
[359167036,1745764099531,892.415,0.0004109,30]
[359167041,1745764158749,500.0,0.00041,30]
[359167050,1745764232009,-230.7934334,0.00019798,2]
[359167051,1745764232019,-200.0,0.00019812,2]
[359167052,1745764232029,-200.0,0.00019843,2]
[359167053,1745764232038,-1342.96942535,0.00019867,2]
[359167054,1745764232048,-1300.48985271,0.00019871,2]
[359167055,1745764232109,-42.47957255,0.00019871,2]
[359167056,1745764232119,-1243.4238779,0.00019874,2]
[359167057,1745764232132,-99.54554736,0.00019874,2]
[359167058,1745764232143,-463.21863037,0.00019878,2]
[359167059,1745764232227,-879.75079489,0.00019878,2]
[359167060,1745764232237,-1200.0,0.00019881,2]
[359167061,1745764232247,-300.0,0.00019881,2]
[359167062,1745764232258,-1342.96942526,0.00019882,2]
[359167063,1745764232268,-3488.27977985,0.00019882,2]
[359167064,1745764232280,-9011.72022015,0.00019882,2]
[359167065,1745764232290,-1342.96942526,0.00019885,2]
[359167066,1745764232300,-1342.96942526,0.00019889,2]
[359167067,1745764232309,-1342.96942526,0.00019893,2]
[359167068,1745764232318,-1342.96942526,0.00019896,2]
[359167069,1745764232329,-15982.50332211,0.000199,2]
[359167070,1745764232338,-1342.96942526,0.000199,2]
[359167071,1745764232348,-235.12,0.0001996,2]
[359167072,1745764232358,-235.12,0.0001996,2]
[359167073,1745764232367,-71607.60196195,0.00019967,2]
[359167074,1745764232389,-1028.61164587,0.00019967,2]
[359167104,1745764237987,-1059.19899924,0.00019967,2]
[359167105,1745764238081,-7633.272,0.00019967,2]
[359167106,1745764238105,-21055.79918986,0.00019967,2]
[359167107,1745764238286,-426.63748379,0.00019967,2]
[359167108,1745764238311,-435.68087864,0.00019967,2]
[359167109,1745764238322,-11677.53579051,0.00019967,2]
[359167116,1745764240288,-1000.0,0.00019967,2]
[359167117,1745764240405,-9179.62520299,0.00019967,2]
[359167118,1745764240416,-527.55520127,0.00019967,2]
[359167119,1745764240505,-11728.87028979,0.00019967,2]
[359167121,1745764240755,-669.59,0.00019967,2]
[359167124,1745764240766,-470.70869016,0.00019967,2]
[359167125,1745764240777,-9839.22621563,0.00019967,2]
[359167149,1745764243131,-796.0,0.00019945,2]
[359167150,1745764243141,-1772.44999997,0.00019967,2]
[359167151,1745764243152,-53481.1480547,0.00019967,2]
[359167152,1745764243162,-185.54803795,0.00019967,2]
[359167153,1745764243171,-400.0,0.00019967,2]
[359167154,1745764243181,-400.0,0.00019967,2]
[359167155,1745764243192,-400.0,0.00019967,2]
[359167156,1745764243202,-428.59990219,0.00019967,2]
[359167157,1745764243214,-400.0,0.00019967,2]
[359167158,1745764243225,-420.57089888,0.00019967,2]
[359167159,1745764243235,-250.0,0.00019967,2]
[359167160,1745764243244,-212.52966365,0.00019967,2]
[359167161,1745764243253,-424.04701998,0.00019967,2]
[359167162,1745764243265,-400.0,0.00019967,2]
[359167163,1745764243275,-221.82565088,0.00019967,2]
[359167164,1745764243284,-400.0,0.00019967,2]
[359167165,1745764243293,-380.62777358,0.00019967,2]
[359167166,1745764243303,-401.32708848,0.00019967,2]
[359167167,1745764243312,-400.0,0.00019967,2]
[359167168,1745764243322,-539.56964188,0.00019967,2]
[359167169,1745764243331,-400.0,0.00019967,2]
[359167170,1745764243342,-400.0,0.00019967,2]
[359167171,1745764243352,-426.79,0.00019967,2]
[359167172,1745764243362,-518.03427882,0.00019967,2]
[359167173,1745764243371,-400.0,0.00019967,2]
[359167174,1745764243380,-425.41760534,0.00019967,2]
[359167175,1745764243389,-400.0,0.00019967,2]
[359167176,1745764243399,-400.0,0.00019967,2]
[359167177,1745764243408,-400.0,0.00019967,2]
[359167178,1745764243418,-413.12,0.00019967,2]
[359167179,1745764243427,-400.0,0.00019967,2]
[359167180,1745764243436,-400.0,0.00019967,2]
[359167181,1745764243446,-400.0,0.00019967,2]
[359167182,1745764243455,-400.0,0.00019967,2]
[359167183,1745764243465,-400.0,0.00019967,2]
[359167184,1745764243474,-400.0,0.00019967,2]
[359167185,1745764243484,-400.0,0.00019967,2]
[359167186,1745764243493,-400.0,0.00019967,2]
[359167187,1745764243503,-400.0,0.00019967,2]
[359167188,1745764243512,-400.0,0.00019967,2]
[359167189,1745764243523,-455.75921299,0.00019967,2]
[359167190,1745764243533,-400.0,0.00019967,2]
[359167191,1745764243543,-400.0,0.00019967,2]
[359167194,1745764243552,-400.0,0.00019967,2]
[359167196,1745764243563,-292.08,0.00019967,2]
[359167198,1745764243573,-417.33,0.00019967,2]
[359167200,1745764243583,-400.0,0.00019967,2]
[359167202,1745764243594,-400.0,0.00019967,2]
[359167204,1745764243603,-214.50719234,0.00019967,2]
[359167206,1745764243613,-400.0,0.00019967,2]
[359167209,1745764243622,-400.0,0.00019967,2]
[359167211,1745764243632,-400.0,0.00019967,2]
[359167213,1745764243641,-400.0,0.00019967,2]
[359167215,1745764243651,-400.0,0.00019967,2]
[359167218,1745764243661,-400.0,0.00019967,2]
[359167220,1745764243670,-342.81510399,0.00019967,2]
[359167224,1745764243701,-57.18489601,0.00019967,2]
[359167226,1745764243711,-359.19106837,0.00019967,2]
[359167228,1745764243720,-11.25653352,0.00019967,2]
[359167229,1745764245423,1312.0,0.00040275,30]
[359167230,1745764245503,1312.0,0.0004069,30]
[359167232,1745764245944,-529.53346648,0.00019967,2]
[359167233,1745764245955,-400.0,0.00019967,2]
[359167234,1745764245966,-400.0,0.00019967,2]
[359167235,1745764245978,-400.0,0.00019967,2]
[359167236,1745764245988,-333.67780296,0.00019967,2]
[359167237,1745764246000,-282.71219704,0.00019967,2]
[359167238,1745764246010,-400.0,0.00019967,2]
[359167239,1745764246019,-400.0,0.00019967,2]
[359167240,1745764246028,-400.0,0.00019967,2]
[359167241,1745764246038,-20.61312821,0.00019967,2]
[359167242,1745764246050,-414.95687179,0.00019967,2]
[359167243,1745764246061,-95.67937305,0.00019967,2]
[359167244,1745764246157,-304.32062695,0.00019967,2]
[359167245,1745764246168,-400.0,0.00019967,2]
[359167246,1745764246178,-359.02902922,0.00019967,2]
[359167247,1745764246188,-128.70253979,0.00019967,2]
[359167248,1745764246200,-271.29746021,0.00019967,2]
[359167249,1745764246210,-400.0,0.00019967,2]
[359167250,1745764246221,-400.0,0.00019967,2]
[359167251,1745764246231,-400.0,0.00019967,2]
[359167252,1745764246241,-400.0,0.00019967,2]
[359167253,1745764246251,-400.0,0.00019967,2]
[359167254,1745764246262,-400.0,0.00019967,2]
[359167255,1745764246272,-400.0,0.00019967,2]
[359167256,1745764246282,-400.0,0.00019967,2]
[359167257,1745764246291,-97.50253979,0.00019967,2]
[359167258,1745764246304,-302.49746021,0.00019967,2]
[359167259,1745764246315,-188.04234619,0.00019967,2]
[359167260,1745764246325,-400.0,0.00019967,2]
[359167261,1745764246335,-400.0,0.00019967,2]
[359167262,1745764246345,-400.0,0.00019967,2]
[359167263,1745764246356,-400.0,0.00019967,2]
[359167264,1745764246366,-400.0,0.00019967,2]
[359167265,1745764246376,-217.38505075,0.00019967,2]
[359167267,1745764246386,-389.56006445,0.00019967,2]
[359167269,1745764246399,-10.43993555,0.00019967,2]
[359167271,1745764246409,-400.0,0.00019967,2]
[359167273,1745764246419,-400.0,0.00019967,2]
[359167275,1745764246428,-400.0,0.00019967,2]
[359167277,1745764246438,-400.0,0.00019967,2]
[359167279,1745764246448,-189.56006445,0.00019967,2]
[359167281,1745764246469,-210.43993555,0.00019967,2]
[359167282,1745764246478,-400.0,0.00019967,2]
[359167283,1745764246488,-400.0,0.00019967,2]
[359167284,1745764246498,-410.62084449,0.00019967,2]
[359167285,1745764246507,-385.86380845,0.00019967,2]
[359167287,1745764246523,-35.11730146,0.00019967,2]
[359167288,1745764246533,-400.0,0.00019967,2]
[359167290,1745764246542,-400.0,0.00019967,2]
[359167291,1745764246552,-458.2918431,0.00019967,2]
[359167292,1745764246563,-427.05,0.00019967,2]
[359167293,1745764246573,-13.98085544,0.00019967,2]
[359167294,1745764246645,-526.46894158,0.00019967,2]
[359167295,1745764246655,-473.49,0.00019967,2]
[359167296,1745764246666,-400.0,0.00019967,2]
[359167297,1745764246675,-400.0,0.00019967,2]
[359167298,1745764246685,-400.0,0.00019967,2]
[359167299,1745764246695,-410.39359262,0.00019967,2]
[359167300,1745764246704,-400.0,0.00019967,2]
[359167301,1745764246714,-400.0,0.00019967,2]
[359167302,1745764246723,-400.0,0.00019967,2]
[359167303,1745764246733,-400.0,0.00019967,2]
[359167304,1745764246743,-400.0,0.00019967,2]
[359167305,1745764246752,-400.0,0.00019967,2]
[359167306,1745764246762,-603.54,0.00019967,2]
[359167307,1745764246772,-400.0,0.00019967,2]
[359167308,1745764246781,-400.0,0.00019967,2]
[359167309,1745764246791,-400.0,0.00019967,2]
[359167310,1745764246800,-184.47188474,0.00019967,2]
[359167311,1745764246810,-400.0,0.00019967,2]
[359167312,1745764246820,-400.0,0.00019967,2]
[359167313,1745764246829,-522.62816855,0.00019967,2]
[359167314,1745764246839,-400.0,0.00019967,2]
[359167315,1745764246850,-400.0,0.00019967,2]
[359167316,1745764246859,-400.0,0.00019967,2]
[359167317,1745764246869,-400.0,0.00019967,2]
[359167318,1745764246879,-400.0,0.00019967,2]
[359167319,1745764246888,-400.0,0.00019967,2]
[359167320,1745764246898,-400.0,0.00019967,2]
[359167321,1745764246908,-583.80061099,0.00019967,2]
[359167322,1745764246917,-400.0,0.00019967,2]
[359167323,1745764246927,-400.0,0.00019967,2]
[359167324,1745764246937,-406.00572695,0.00019967,2]
[359167325,1745764246947,-400.0,0.00019967,2]
[359167326,1745764246957,-400.0,0.00019967,2]
[359167327,1745764246967,-151.0,0.00019967,2]
[359167328,1745764246977,-400.0,0.00019967,2]
[359167329,1745764246986,-203.26657215,0.00019967,2]
[359167330,1745764246996,-420.6709194,0.00019967,2]
[359167331,1745764247006,-400.0,0.00019967,2]
[359167332,1745764247016,-400.0,0.00019967,2]
[359167333,1745764247025,-400.0,0.00019967,2]
[359167334,1745764247036,-400.0,0.00019967,2]
[359167335,1745764247045,-400.0,0.00019967,2]
[359167336,1745764247055,-400.0,0.00019967,2]
[359167337,1745764247066,-400.0,0.00019967,2]
[359167338,1745764247075,-400.0,0.00019967,2]
[359167339,1745764247085,-400.0,0.00019967,2]
[359167340,1745764247096,-400.0,0.00019967,2]
[359167341,1745764247106,-58.47638302,0.00019967,2]
[359167342,1745764292873,600.0,0.00041096,30]
[359167343,1745764316459,1098.52,0.00041095,120]
[359167344,1745764320571,350.0,0.00041096,30]
[359167348,1745764383865,151.0,0.00041096,30]
[359167349,1745764415934,-184.6347467,0.00019785,2]
[359167350,1745764415957,-200.0,0.00019878,2]
[359167351,1745764415978,-358.14771767,0.000199,2]
[359167352,1745764416000,-200.0,0.00019932,2]
[359167353,1745764416023,-43099.21753563,0.00019957,2]
[359167354,1745764442049,250.0,0.00017,2]
[359167355,1745764443135,162.00487015,0.00019,2]
[359167356,1745764443161,137.99512985,0.00019,2]
[359167357,1745764455629,600.0,0.00041096,30]
[359167358,1745764512931,1000.0,0.00019015,2]
[359167359,1745764608230,480.0,0.00041095,30]
[359167360,1745764609523,480.0,0.00041095,30]
[359167361,1745764610527,480.0,0.00041095,30]
[359167362,1745764613941,480.0,0.00041095,30]
[359167363,1745764615475,480.0,0.00041095,30]
[359167364,1745764615727,480.0,0.00041095,30]
[359167365,1745764618526,480.0,0.00041095,30]
[359167366,1745764618871,480.0,0.00041095,30]
[359167367,1745764619723,3035.2,0.00041095,30]
[359167368,1745764621156,480.0,0.00041095,30]
[359167369,1745764623743,480.0,0.00041095,30]
[359167370,1745764625402,480.0,0.00041095,30]
[359167371,1745764628683,480.0,0.00041095,30]
[359167372,1745764629119,480.0,0.00041095,30]
[359167373,1745764630209,480.0,0.00041095,30]
[359167374,1745764630977,584.95,0.00041095,30]
[359167375,1745764631063,480.0,0.00041095,30]
[359167376,1745764631129,480.0,0.00041095,30]
[359167377,1745764633093,480.0,0.00041095,30]
[359167378,1745764633326,480.0,0.00041095,30]
[359167379,1745764633484,393.73803371,0.00041095,30]
[359167380,1745764633727,480.0,0.00041095,30]
[359167381,1745764636183,480.0,0.00041095,30]
[359167382,1745764638805,480.0,0.00041095,30]
[359167383,1745764643139,400.0,0.00041095,30]
[359167384,1745764644936,480.0,0.00041095,30]
[359167385,1745764644986,480.0,0.00041095,30]
[359167386,1745764646615,671.82,0.00041095,30]
[359167387,1745764647950,480.0,0.00041095,30]
[359167388,1745764650065,480.0,0.00041095,30]
[359167389,1745764651040,200.0,0.00041095,30]
[359167390,1745764652824,480.0,0.00041095,30]
[359167391,1745764656086,480.0,0.00041095,30]
[359167392,1745764656677,466.51270469,0.00041095,30]
[359167393,1745764658241,500.0,0.00041095,30]
[359167394,1745764658545,534.14721425,0.00041095,30]
[359167395,1745764659757,480.0,0.00041095,30]
[359167396,1745764660410,488.19,0.00041095,30]
[359167397,1745764663033,480.0,0.00041095,30]
[359167398,1745764663964,480.0,0.00041095,30]
[359167399,1745764666815,480.0,0.00041095,30]
[359167400,1745764667297,858.04,0.00041095,30]
[359167401,1745764670489,480.0,0.00041095,30]
[359167402,1745764671659,480.0,0.00041095,30]
[359167403,1745764671947,480.0,0.00041095,30]
[359167404,1745764673039,1476624.14394673,0.00041,30]
[359167406,1745764927159,175.19,0.00015183,2]
[359167407,1745765105294,5000.0,0.00036986,60]
[359167409,1745765247057,315.43,0.00017034,2]
[359167410,1745765247261,315.43,0.00019298,2]
[359167411,1745765247664,-164.52263386,0.00019353,2]
[359167412,1745765250565,1255.0,0.00036986,60]
[359167413,1745765250876,-152.0,0.00019353,2]
[359167414,1745765254701,-83.47736614,0.00019353,2]
[359167415,1745765300783,5000.0,0.0003698,60]
[359167428,1745765432251,-184.6347467,0.00019785,2]
[359167429,1745765432262,-98.84350531,0.00019857,2]
[359167430,1745765432395,-175.6936076,0.00019857,2]
[359167431,1745765432405,-218.59125963,0.00019866,2]
[359167432,1745765432416,-218.59125954,0.0001987,2]
[359167433,1745765432425,-218.59125954,0.00019874,2]
[359167434,1745765432435,-218.59125954,0.00019877,2]
[359167435,1745765432444,-218.59125954,0.00019881,2]
[359167436,1745765432453,-218.59125954,0.00019885,2]
[359167437,1745765432463,-218.59125954,0.00019889,2]
[359167438,1745765432472,-218.59125954,0.00019892,2]
[359167439,1745765432481,-218.59125954,0.00019896,2]
[359167440,1745765432491,-1200.0,0.00019898,2]
[359167441,1745765432500,-1142.16268559,0.00019899,2]
[359167442,1745765432510,-1142.16268557,0.000199,2]
[359167443,1745765432519,-1142.16268557,0.000199,2]
[359167444,1745765432528,-218.59125954,0.000199,2]
[359167445,1745765432538,-796.0,0.00019945,2]
[359167446,1745765432547,-164.52263386,0.00019954,2]
[359167447,1745765432556,-3132.73852702,0.00019955,2]
[359167448,1745765432575,-6288.71451618,0.00019955,2]
[359167449,1745765432585,-15512.87451828,0.00019955,2]
[359167828,1745765438415,-4676.55,0.00019955,2]
[359167829,1745765438427,-1311.01253877,0.00019955,2]
[359167860,1745765443328,-14.48404579,0.00019899,2]
[359167861,1745765443679,-149.96604689,0.00019899,2]
[359167862,1745765443689,-1017.54395311,0.000199,2]
[359167872,1745765446426,-164.45009267,0.000199,2]
[359167873,1745765446436,-11482.45604689,0.000199,2]
[359167874,1745765446445,-16713.76035905,0.00019955,2]
[359167875,1745765446460,-7670.2,0.00019955,2]
[359167876,1745765446471,-284.379,0.00019955,2]
[359167887,1745765665025,1000.0,0.00018972,2]
[359167888,1745765926689,250.0,0.00018962,2]
[359167889,1745766049454,175.19,0.00015167,2]
[359167891,1745766276085,250.0,0.00017,2]
[359167892,1745766277173,300.0,0.00019,2]
[359167893,1745766295418,325.67,0.0001704,2]
[359167894,1745766295582,325.67,0.00019304,2]
[359167896,1745766416383,162.69,0.00018949,2]
[359167906,1745766632346,-184.6347467,0.00019783,2]
[359167907,1745766632355,-98.07265514,0.00019852,2]
[359167908,1745766632367,-1415.92734486,0.00019852,2]
[359167909,1745766632376,-1200.0,0.00019855,2]
[359167910,1745766632385,-12500.0,0.00019856,2]
[359167911,1745766632395,-12500.0,0.00019865,2]